fUSD/lending_fUSD_20251002
["ID","MTS","AMOUNT","RATE_DAILY","PERIOD"]
[388838444,1759410647471,-500.0,0.00021917,2]
[388838445,1759410647481,-500.0,0.00021917,2]
[388838446,1759410647491,-500.0,0.00021917,2]
[388838447,1759410647500,-500.0,0.00021917,2]
[388838448,1759410647509,-500.0,0.00021917,2]
[388838449,1759410647519,-1120.42,0.00021917,2]
[388838450,1759410647529,-500.0,0.00021917,2]
[388838451,1759410647538,-500.0,0.00021917,2]
[388838452,1759410647548,-500.0,0.00021917,2]
[388838453,1759410647558,-500.0,0.00021917,2]
[388838454,1759410647568,-500.0,0.00021917,2]
[388838455,1759410647577,-151.0,0.00021917,2]
[388838456,1759410647587,-151.0,0.00021917,2]
[388838457,1759410647596,-1264.45,0.00021917,2]
[388838458,1759410647605,-500.0,0.00021917,2]
[388838459,1759410647615,-753.84,0.00021917,2]
[388838460,1759410647625,-500.0,0.00021917,2]
[388838461,1759410647635,-500.0,0.00021917,2]
[388838462,1759410647644,-159.732737,0.00021917,2]
[388838463,1759410647654,-692.13,0.00021917,2]
[388838464,1759410647664,-500.0,0.00021917,2]
[388838465,1759410647674,-837.5,0.00021917,2]
[388838466,1759410647684,-565.43,0.00021917,2]
[388838467,1759410647693,-500.0,0.00021917,2]
[388838468,1759410647703,-500.0,0.00021917,2]
[388838469,1759410647713,-378.30705263,0.00021917,2]
[388838470,1759410647723,-500.0,0.00021917,2]
[388838471,1759410647732,-500.0,0.00021917,2]
[388838472,1759410647742,-500.0,0.00021917,2]
[388838473,1759410647751,-500.0,0.00021917,2]
[388838474,1759410647761,-500.0,0.00021917,2]
[388838475,1759410647775,-667.73,0.00021917,2]
[388838476,1759410647785,-1784.76,0.00021917,2]
[388838477,1759410647795,-500.0,0.00021917,2]
[388838478,1759410647805,-500.0,0.00021917,2]
[388838479,1759410647815,-500.0,0.00021917,2]
[388838480,1759410647826,-500.0,0.00021917,2]
[388838481,1759410647837,-1190.6,0.00021917,2]
[388838482,1759410647847,-500.0,0.00021917,2]
[388838483,1759410647857,-500.0,0.00021917,2]
[388838484,1759410647867,-1177.16,0.00021917,2]
[388838485,1759410647877,-500.0,0.00021917,2]
[388838486,1759410647887,-500.0,0.00021917,2]
[388838487,1759410647896,-636.27,0.00021917,2]
[388838488,1759410647907,-500.0,0.00021917,2]
[388838489,1759410647917,-500.0,0.00021917,2]
[388838490,1759410647927,-500.0,0.00021917,2]
[388838491,1759410647937,-500.0,0.00021917,2]
[388838492,1759410647947,-500.0,0.00021917,2]
[388838493,1759410647956,-500.0,0.00021917,2]
[388838494,1759410647965,-500.0,0.00021917,2]
[388838495,1759410647976,-500.0,0.00021917,2]
[388838496,1759410647985,-500.89777497,0.00021917,2]
[388838497,1759410647995,-500.0,0.00021917,2]
[388838498,1759410648004,-785.72,0.00021917,2]
[388838499,1759410648014,-500.0,0.00021917,2]
[388838500,1759410648024,-1183.35,0.00021917,2]
[388838501,1759410648033,-500.0,0.00021917,2]
[388838502,1759410648043,-500.0,0.00021917,2]
[388838503,1759410648053,-500.0,0.00021917,2]
[388838504,1759410648062,-500.0,0.00021917,2]
[388838505,1759410648071,-500.0,0.00021917,2]
[388838506,1759410648082,-1057.97,0.00021917,2]
[388838507,1759410648092,-500.0,0.00021917,2]
[388838508,1759410648102,-500.0,0.00021917,2]
[388838509,1759410648112,-500.0,0.00021917,2]
[388838510,1759410648122,-1916.3,0.00021917,2]
[388838511,1759410648132,-1888.84,0.00021917,2]
[388838512,1759410648141,-500.0,0.00021917,2]
[388838513,1759410648156,-500.0,0.00021917,2]
[388838514,1759410648165,-2045.25,0.00021917,2]
[388838515,1759410648175,-740.88,0.00021917,2]
[388838516,1759410648186,-500.0,0.00021917,2]
[388838517,1759410648196,-500.0,0.00021917,2]
[388838518,1759410648206,-500.0,0.00021917,2]
[388838519,1759410648215,-296.04097418,0.00021917,2]
[388838520,1759410648228,-500.0,0.00021917,2]
[388838521,1759410648237,-500.0,0.00021917,2]
[388838522,1759410648247,-1822.79,0.00021917,2]
[388838523,1759410648256,-139.05286868,0.00021917,2]
[388838525,1759410649326,-1630.18713132,0.00021917,2]
[388838526,1759410649335,-500.0,0.00021917,2]
[388838527,1759410649346,-500.0,0.00021917,2]
[388838528,1759410649355,-500.0,0.00021917,2]
[388838529,1759410649365,-500.0,0.00021917,2]
[388838530,1759410649376,-500.0,0.00021917,2]
[388838531,1759410649386,-611.22,0.00021917,2]
[388838532,1759410649397,-369.03549091,0.00021917,2]
[388838549,1759410895607,250.2,0.00025,60]
[388838697,1759411259311,9501.7,0.00025,60]
[388838699,1759411322638,-171.25,0.00016712,2]
[388838704,1759411441103,175.84,0.00025837,120]
[388838718,1759411510402,-8051.19846451,0.00017,2]
[388838719,1759411512456,-166.06342077,0.00017,2]
[388838720,1759411518851,-159.92,0.00017,2]
[388838721,1759411520630,-30258.7305268,0.00017,2]
[388838723,1759411528460,-99134.35154164,0.00017,2]
[388838725,1759411533559,-168.0,0.00017,2]
[388838726,1759411535638,-1183.42,0.00017,2]
[388838727,1759411542804,-1177.16,0.00017,2]
[388838731,1759411550236,-7990.63523136,0.00017,2]
[388838732,1759411554810,670.85877101,0.0001659,2]
[388838734,1759411564842,-150.0,0.00016915,2]
[388838737,1759411567749,4611.33628486,0.00011,2]
[388838788,1759411571837,-19.93,0.00016915,2]
[388838789,1759411571876,-110.14,0.00017,2]
[388838791,1759411579162,-160.49237788,0.00017,2]
[388838795,1759411586660,-150.0,0.00017,2]
[388838798,1759411594272,-1961.14973012,0.00017,2]
[388838799,1759411602260,-240.34895804,0.00017,2]
[388838800,1759411610141,-150.0,0.00016999,2]
[388838803,1759411616297,-150.0,0.00016999,2]
[388838804,1759411625501,-150.0,0.00016999,2]
[388838805,1759411630784,-150.0,0.00016999,2]
[388838807,1759411638595,-71.0,0.00016999,2]
[388838808,1759411638622,-8.0,0.00016999,2]
[388838809,1759411645604,-150.0,0.00016999,2]
[388838813,1759411653090,-64.01329874,0.00016999,2]
[388838814,1759411653118,-21.97340252,0.00016999,2]
[388838818,1759411660162,-150.0,0.00016999,2]
[388838821,1759411667228,-150.0,0.00016999,2]
[388838822,1759411674210,-150.0,0.00016999,2]
[388838825,1759411681310,-50.0,0.00016999,2]
[388838826,1759411681344,-51.0,0.00016999,2]
[388838827,1759411688368,-151.0,0.00016999,2]
[388838828,1759411691037,3539.3944758,0.0001439,2]
[388838830,1759411695319,-151.0,0.00016999,2]
[388838831,1759411702349,-4.0,0.00016999,2]
[388838832,1759411702372,-143.0,0.00016999,2]
[388838836,1759411709398,-151.0,0.00016999,2]
[388838845,1759411716425,-151.0,0.00016999,2]
[388838846,1759411716451,-198.0,0.00016999,2]
[388838865,1759411723055,1445.65985336,0.0001,2]
[388838866,1759411723123,11421.19836442,0.00015,2]
[388838867,1759411723534,-151.0,0.00016999,2]
[388838871,1759411730665,-151.0,0.00016999,2]
[388838872,1759411738153,-198.0,0.00016999,2]
[388838873,1759411738189,-104.0,0.00016999,2]
[388838874,1759411745161,-151.0,0.00016999,2]
[388838877,1759411752646,-151.0,0.00016999,2]
[388838878,1759411760199,-94.0,0.00016999,2]
[388838879,1759411760243,-176.38713758,0.00016999,2]
[388838880,1759411768557,-151.0,0.00016999,2]
[388838881,1759411774859,-172.61286242,0.00016999,2]
[388838882,1759411774893,-4.77427516,0.00016999,2]
[388838883,1759411774942,-145.22572484,0.00016999,2]
[388838885,1759411781915,-151.0,0.00016999,2]
[388838886,1759411789835,-5.15351833,0.00016999,2]
[388838887,1759411789908,-279.37916819,0.00016999,2]
[388838888,1759411796923,-151.0,0.00016983,2]
[388838892,1759411804106,-200.0,0.00016983,2]
[388838893,1759411811140,-151.0,0.00016983,2]
[388838894,1759411818342,-151.0,0.00016983,2]
[388838897,1759411825788,-151.0,0.00016983,2]
[388838903,1759411831735,-1157.14973012,0.00016983,2]
[388838904,1759411831745,-277.0,0.00016998,2]
[388838905,1759411831754,-1200.0,0.00016998,2]
[388838906,1759411831764,-220.62083181,0.00016999,2]
[388838907,1759411831773,-500.0,0.00016999,2]
[388838908,1759411831783,-207.3723388,0.00016999,2]
[388838909,1759411831793,-500.0,0.00016999,2]
[388838910,1759411831802,-500.0,0.00016999,2]
[388838911,1759411831812,-500.0,0.00016999,2]
[388838912,1759411831821,-500.0,0.00016999,2]
[388838913,1759411831830,-500.0,0.00016999,2]
[388838914,1759411831840,-500.0,0.00016999,2]
[388838915,1759411831850,-500.0,0.00016999,2]
[388838916,1759411831859,-500.0,0.00016999,2]
[388838917,1759411831868,-500.0,0.00016999,2]
[388838918,1759411831879,-500.0,0.00016999,2]
[388838919,1759411831888,-500.0,0.00016999,2]
[388838920,1759411831899,-310.49237788,0.00017,2]
[388838921,1759411831910,-221022.63387139,0.00017,2]
[388838924,1759411831947,-1621.94596358,0.00017,2]
[388838927,1759411831970,-1101.78384075,0.00017,2]
[388838931,1759411831994,-800.83009947,0.00017,2]
[388838950,1759411837680,-295.26,0.00016999,2]
[388838974,1759411839571,-3398.24328556,0.00016999,2]
[388838975,1759411839580,-13787.31993983,0.00017,2]
[388838976,1759411839591,-68437.38437883,0.00017,2]
[388838977,1759411839603,-29120.80847923,0.00017,2]
[388838978,1759411839689,-1866.05407036,0.00017,2]
[388838979,1759411839921,-151.0,0.00017,2]
[388839056,1759411842879,-2401.16395355,0.00017,2]
[388839057,1759411842937,-8056.57099012,0.00017,2]
[388839058,1759411842950,-396.83604645,0.00017,2]
[388839062,1759411845706,-500.0,0.00016999,2]
[388839063,1759411845716,-500.0,0.00016999,2]
[388839064,1759411845727,-500.0,0.00016999,2]
[388839065,1759411845736,-500.0,0.00016999,2]
[388839066,1759411845747,-500.0,0.00016999,2]
[388839067,1759411845758,-358.80184321,0.00016999,2]
[388839068,1759411845767,-1413.01680079,0.00017,2]
[388839071,1759411845876,-1917.22029484,0.00017,2]
[388839273,1759411847960,-336.15973518,0.00016999,2]
[388839908,1759411854771,-151.0,0.00016999,2]
[388839909,1759411861920,-12.84026482,0.00016999,2]
[388839910,1759411861968,-125.31947036,0.00017,2]
[388839911,1759411869439,-151.0,0.00017,2]
[388839912,1759411877477,-151.0,0.00017,2]
[388839913,1759411884982,-72.68052964,0.00017,2]
[388839914,1759411885179,-5.63894072,0.00017,2]
[388839915,1759411892134,-151.0,0.00017,2]
[388839916,1759411899141,-151.0,0.00017,2]
[388839917,1759411907548,-151.0,0.00017,2]
[388839918,1759411914674,-151.0,0.00017,2]
[388839919,1759411921719,-200.0,0.00017,2]
[388839920,1759411929374,-151.0,0.0001699,2]
[388839921,1759411929556,-198.0,0.0001699,2]
[388839922,1759411936222,-41.64090728,0.0001699,2]
[388839923,1759411936314,-96.5188279,0.0001699,2]
[388839924,1759411943069,-273.39357614,0.00016989,2]
[388839925,1759411950780,-565.0,0.00016989,2]
[388839926,1759411957044,-150.0,0.00016989,2]
[388839927,1759411964493,-150.0,0.00016989,2]
[388839931,1759411972239,-61.60642386,0.00016989,2]
[388839932,1759411972269,-151.0,0.0001699,2]
[388839933,1759411972423,-74.78715228,0.0001699,2]
[388839937,1759411979567,-73.78715228,0.0001699,2]
[388839938,1759411979596,-2.42569544,0.0001699,2]
[388839939,1759411987056,-150.0,0.0001699,2]
[388839940,1759411994945,-1.0,0.0001699,2]
[388839941,1759411995147,-148.0,0.0001699,2]
[388839942,1759412018134,-3.0,0.0001699,2]
[388839943,1759412018163,-151.0,0.0001699,2]
[388839944,1759412018239,-62.49393606,0.0001699,2]
[388839945,1759412032501,-88.50606394,0.0001699,2]
[388839946,1759412032547,-177.36787212,0.0001699,2]
[388839947,1759412037800,160.05,9.773e-05,2]
[388839948,1759412039556,-40.5521572,0.0001699,2]
[388839949,1759412039582,-68.8956856,0.0001699,2]
[388839950,1759412061073,-200.0,0.0001699,2]
[388839951,1759412061104,-151.0,0.0001699,2]
[388839952,1759412061137,-500.0,0.0001699,2]
[388839953,1759412061167,-151.0,0.0001699,2]
[388839954,1759412061197,-500.0,0.0001699,2]
[388839955,1759412061228,-151.0,0.0001699,2]
[388839956,1759412061259,-429.0,0.0001699,2]
[388839957,1759412061425,-71.0,0.0001699,2]
[388839958,1759412068080,-49.0,0.0001699,2]
[388839959,1759412068104,-102.0,0.0001699,2]
[388839960,1759412075158,-150.0,0.0001699,2]
[388839961,1759412083038,-150.0,0.00016989,2]
[388839962,1759412091904,-150.0,0.00016989,2]
[388839963,1759412097582,-150.0,0.00016989,2]
[388839964,1759412104569,-150.0,0.00016989,2]
[388839965,1759412112111,-460.88,0.00016989,2]
[388839966,1759412119752,-221.46,0.00016989,2]
[388839967,1759412127476,-1052.45,0.00016989,2]
[388839968,1759412134898,-200.0,0.00016989,2]
[388839969,1759412142011,-355.50406023,0.00016989,2]
[388839970,1759412149011,-1606.48668244,0.00016989,2]
[388839971,1759412156647,-150.0,0.00016989,2]
[388839972,1759412163298,-379.44,0.00016989,2]
[388839973,1759412170365,-178.95,0.00016989,2]
[388839974,1759412178307,-151.0,0.00016989,2]
[388839976,1759412193744,-161.030058,0.00016989,2]
[388839978,1759412216775,-145.09919933,0.00016989,2]
[388839979,1759412216809,-297.00160134,0.00016989,2]
[388839980,1759412224758,-500.0,0.00016989,2]
[388839981,1759412238552,-97.00160134,0.00016989,2]
[388839982,1759412238585,-305.99679732,0.00016989,2]
[388839983,1759412245686,-152.58996,0.00016989,2]
[388839984,1759412252786,-222.920943,0.00016989,2]
[388839985,1759412266773,-161.47820539,0.00016989,2]
[388839989,1759412304537,-150.0,0.00016904,20]
[388839990,1759412304582,-992.49239978,0.00016989,2]
[388839991,1759412311597,-150.0,0.00016989,2]
[388839992,1759412320276,-150.0,0.00016989,2]
[388839998,1759412326129,-150.0,0.00016989,2]
[388840006,1759412333156,-150.0,0.00016989,2]
[388840007,1759412340136,-461.71,0.00016989,2]
[388840008,1759412347147,-150.0,0.00016989,2]
[388840009,1759412354232,-165.33,0.00016989,2]
[388840010,1759412361619,-318.27963393,0.00016989,2]
[388840011,1759412361655,-2042.18957835,0.00016989,2]
[388840012,1759412383223,-150.0,0.00016989,2]
[388840013,1759412405064,-150.0,0.00016989,2]
[388840014,1759412412290,-150.0,0.00016989,2]
[388840015,1759412419812,-150.0,0.00016989,2]
[388840016,1759412420764,234.09,0.00024686,120]
[388840017,1759412442467,-150.0,0.00016989,2]
[388840018,1759412464057,-150.0,0.00016989,2]
[388840019,1759412471563,-200.0,0.00016989,2]
[388840020,1759412499514,-208.273101,0.00016989,2]
[388840021,1759412534295,-150.0,0.00016989,2]
[388840022,1759412570097,-174.84675387,0.00016989,2]
[388840024,1759412577054,-150.0,0.00016989,2]
[388840025,1759412584659,-150.0,0.00016989,2]
[388840026,1759412605537,-194.11841708,0.00016989,2]
[388840027,1759412627078,-150.0,0.00016989,2]
[388840028,1759412772943,-5515.0375247,0.00016988,2]
[388840029,1759412772964,-179.80064246,0.00016989,2]
[388840030,1759412772986,-20687.5627202,0.00016989,2]
[388840031,1759412773006,-519.155279,0.00016989,2]
[388840032,1759412773027,-2500.0,0.00016989,2]
[388840033,1759412773047,-266.18964737,0.0001699,2]
[388840034,1759412773068,-500.0,0.0001699,2]
[388840035,1759412773089,-151.0,0.0001699,2]
[388840036,1759412773110,-289.68620485,0.0001699,2]
[388840037,1759412773131,-151.0,0.0001699,2]
[388840038,1759412773157,-151.0,0.0001699,2]
[388840039,1759412773181,-151.0,0.0001699,2]
[388840040,1759412773205,-151.0,0.0001699,2]
[388840041,1759412773228,-151.0,0.0001699,2]
[388840042,1759412773249,-151.0,0.0001699,2]
[388840043,1759412773270,-151.0,0.0001699,2]
[388840044,1759412773292,-151.0,0.0001699,2]
[388840045,1759412773313,-151.0,0.0001699,2]
[388840046,1759412773336,-151.0,0.0001699,2]
[388840047,1759412773359,-151.0,0.0001699,2]
[388840048,1759412773381,-200.0,0.0001699,2]
[388840049,1759412773406,-151.0,0.0001699,2]
[388840050,1759412773429,-151.0,0.0001699,2]
[388840051,1759412773453,-151.0,0.0001699,2]
[388840052,1759412773476,-198.23200617,0.0001699,2]
[388840053,1759412773498,-1175.03,0.0001699,2]
[388840054,1759412773523,-196.4040617,0.00016999,2]
[388840055,1759412773547,-43184.84091351,0.00017,2]
[388840056,1759412773569,-513.0691003,0.00017,2]
[388840057,1759412773592,-676.2973795,0.00017,2]
[388840058,1759412773616,-200.0,0.00017,2]
[388840059,1759412773650,-156.86967963,0.00017,2]
[388840060,1759412773675,-1000.0,0.00017,2]
[388840061,1759412773701,-1043.14616486,0.00017,2]
[388840062,1759412773723,-151.0,0.00017,2]
[388840063,1759412773748,-151.0,0.00017,2]
[388840064,1759412773773,-166.18831619,0.00017,2]
[388840065,1759412773796,-200.0,0.0001717,2]
[388840066,1759412773829,-1175.03,0.00017264,2]
[388840067,1759412773852,-200.0,0.00017342,2]
[388840068,1759412773874,-202.36626526,0.00017538,2]
[388840069,1759412773897,-1175.03,0.00017538,2]
[388840070,1759412773921,-1175.03,0.00017812,2]
[388840071,1759412773946,-150.0,0.00017838,2]
[388840072,1759412773967,-367.13287,0.0001792,2]
[388840073,1759412773992,-367.13287,0.0001794,2]
[388840074,1759412774014,-13253.7683543,0.00018005,2]
[388840075,1759412774422,-32784.65121662,0.00018005,2]
[388840076,1759412774446,-367.13287,0.0001801,2]
[388840077,1759412774468,-367.13287,0.0001807,2]
[388840078,1759412774491,-1175.03,0.00018086,2]
[388840079,1759412774518,-367.13287,0.0001813,2]
[388840080,1759412774540,-367.13287,0.0001819,2]
[388840081,1759412774563,-160.0,0.000183,2]
[388840082,1759412774585,-246.0,0.00018348,2]
[388840083,1759412774609,-1175.03,0.0001836,2]
[388840084,1759412774631,-4407.06804562,0.000185,2]
[388840085,1759412774652,-1000.0,0.000186,2]
[388840086,1759412774676,-500.0,0.00018626,2]
[388840087,1759412774700,-243.27710895,0.00018626,2]
[388840088,1759412774725,-500.0,0.00018626,2]
[388840089,1759412774751,-500.0,0.00018626,2]
[388840090,1759412774777,-500.0,0.00018626,2]
[388840091,1759412774800,-500.0,0.00018626,2]
[388840092,1759412774825,-199.75038301,0.00018626,2]
[388840093,1759412774852,-500.0,0.00018626,2]
[388840094,1759412774876,-500.0,0.00018626,2]
[388840095,1759412774901,-500.0,0.00018626,2]
[388840096,1759412775390,-500.0,0.00018626,2]
[388840097,1759412775415,-500.0,0.00018626,2]
[388840098,1759412775441,-500.0,0.00018626,2]
[388840099,1759412775463,-646.0,0.00018627,2]
[388840100,1759412775484,-855.0,0.00018627,2]
[388840101,1759412775506,-1175.03,0.00018634,2]
[388840102,1759412775528,-300.0,0.00018687,2]
[388840103,1759412775559,-250.0,0.00018687,2]
[388840104,1759412775584,-300.0,0.00018687,2]
[388840105,1759412775606,-355.50406023,0.00018688,2]
[388840106,1759412775630,-2381.43619989,0.00018688,2]
[388840107,1759412775655,-1606.48668244,0.00018688,2]
[388840108,1759412775681,-2500.0,0.00018688,2]
[388840109,1759412775705,-195.0,0.00018688,2]
[388840110,1759412775728,-500.0,0.00018688,2]
[388840111,1759412775756,-2000.0,0.00018688,2]
[388840112,1759412775779,-216.72336019,0.00018688,2]
[388840113,1759412775802,-150.0,0.000187,2]
[388840114,1759412775827,-196.4040617,0.00018874,2]
[388840115,1759412775849,-676.2973795,0.00018891,2]
[388840116,1759412775870,-1175.03,0.00018908,2]
[388840117,1759412775892,-409.5,0.0001893,2]
[388840118,1759412775914,-291.41,0.00018988,2]
[388840119,1759412775938,-551.01,0.00019006,2]
[388840120,1759412775960,-1087.4,0.00019058,2]
[388840121,1759412775983,-1052.45,0.00019075,2]
[388840122,1759412776008,-1230.5712061,0.00019143,2]
[388840123,1759412776038,-165.33,0.00019162,2]
[388840124,1759412776070,-1175.03,0.00019182,2]
[388840125,1759412776094,-960.3,0.00019193,2]
[388840126,1759412776118,-460.88,0.00019193,2]
[388840127,1759412776142,-375.20855909,0.00019246,2]
[388840128,1759412776167,-340.61,0.00019368,2]
[388840129,1759412776193,-209.09976355,0.00019425,2]
[388840130,1759412776216,-1175.03,0.00019456,2]
[388840131,1759412776241,-6507.02184046,0.0001951,2]
[388840132,1759412776267,-160.05,0.00019547,2]
[388840133,1759412776290,-1000.0,0.000196,3]
[388840134,1759412776314,-941.0,0.00019602,2]
[388840135,1759412776337,-3394.52235673,0.0001961,2]
[388840136,1759412776360,-274.5775502,0.00019624,2]
[388840137,1759412776384,-306.0,0.00019699,2]
[388840138,1759412776407,-2000.0,0.000197,2]
[388840139,1759412776430,-150.0,0.00019701,2]
[388840140,1759412776455,-174.84675387,0.00019701,2]
[388840141,1759412776478,-150.0,0.00019701,2]
[388840142,1759412776500,-150.0,0.00019701,2]
[388840143,1759412776523,-150.0,0.00019701,2]
[388840144,1759412776546,-150.0,0.00019701,2]
[388840145,1759412776569,-150.0,0.00019701,2]
[388840146,1759412776592,-150.0,0.00019701,2]
[388840147,1759412776615,-150.0,0.00019701,2]
[388840148,1759412776637,-150.0,0.00019701,2]
[388840149,1759412776660,-150.0,0.00019701,2]
[388840150,1759412776683,-150.0,0.00019701,2]
[388840151,1759412776708,-150.0,0.00019701,2]
[388840152,1759412776737,-150.0,0.00019701,2]
[388840153,1759412776760,-150.0,0.00019701,2]
[388840154,1759412776784,-1175.03,0.0001973,2]
[388840155,1759412776810,-234.09,0.00019749,2]
[388840156,1759412776833,-6507.02184046,0.00019786,2]
[388840157,1759412776855,-643.17918391,0.00019842,2]
[388840158,1759412776878,-942.30760079,0.00019871,2]
[388840159,1759412776901,-150.0,0.0001988,2]
[388840160,1759412779161,168.27336669,0.00019078,2]
[388840161,1759412779183,100000.0,0.00019078,2]
[388840162,1759412779206,100000.0,0.00019078,2]
[388840163,1759412779230,56725.17663331,0.00019078,2]
[388840170,1759412837914,151.0,0.00019799,2]
[388840172,1759412849039,322.6107,0.00019799,2]
[388840173,1759412870446,2678.74884621,0.00019692,2]
[388840174,1759412959106,-319.10575538,0.00019594,2]
[388840181,1759413031997,-355.57996271,0.0001978,2]
[388840182,1759413032020,-219.14538929,0.0001978,2]
[388840183,1759413032030,-160.34139105,0.0001988,2]
[388840184,1759413032040,-1175.09,0.00020004,2]
[388840185,1759413032050,-338.54855352,0.00020015,2]
[388840186,1759413032060,-341.1992073,0.0002004,2]
[388840187,1759413032070,-250.0,0.00020087,2]
[388840188,1759413032079,-150.0,0.00020139,4]
[388840189,1759413032089,-150.0,0.00020139,4]
[388840190,1759413032098,-150.0,0.00020139,4]
[388840191,1759413032108,-1200.0,0.00020195,2]
[388840192,1759413032117,-5579.8138108,0.00020196,2]
[388840193,1759413032127,-150.0,0.00020249,4]
[388840194,1759413032136,-150.0,0.00020249,4]
[388840195,1759413032145,-189.63,0.000203,2]
[388840196,1759413032154,-340.61,0.00020336,2]
[388840197,1759413032163,-151.0,0.00020347,2]
[388840198,1759413032175,-300.0,0.00020399,2]
[388840199,1759413032184,-175.48,0.000204,2]
[388840200,1759413032193,-150.0,0.00020431,4]
[388840201,1759413032203,-200.0,0.0002051,2]
[388840202,1759413032212,-200.0,0.0002051,2]
[388840203,1759413032222,-150.0,0.00020577,4]
[388840204,1759413032231,-150.0,0.00020577,4]
[388840205,1759413032240,-150.0,0.00020577,4]
[388840206,1759413032249,-280.01068383,0.00020578,2]
[388840207,1759413032258,-1120.0,0.000206,4]
[388840208,1759413032268,-175.84,0.0002067,2]
[388840209,1759413032277,-168.0,0.0002071,2]
[388840210,1759413032287,-165.33,0.00020746,2]
[388840211,1759413032297,-196.4040617,0.0002075,2]
[388840212,1759413032307,-676.2973795,0.00020781,2]
[388840213,1759413032316,-150.0,0.00020796,4]
[388840214,1759413032325,-150.0,0.00020796,4]
[388840215,1759413032334,-150.0,0.00020796,4]
[388840216,1759413032344,-150.0,0.00020796,4]
[388840217,1759413032353,-150.0,0.00020796,4]
[388840218,1759413032362,-10320.91939872,0.0002081,2]
[388840219,1759413032372,-225.0,0.00020891,2]
[388840220,1759413032381,-385.23,0.000209,2]
[388840221,1759413032390,-550.0,0.0002091,2]
[388840222,1759413032400,-1245.0247492,0.00020911,2]
[388840223,1759413032409,-160.5533949,0.00020955,2]
[388840224,1759413032420,-150.0,0.00021015,4]
[388840225,1759413032429,-150.0,0.00021015,4]
[388840226,1759413032439,-150.0,0.00021015,4]
[388840227,1759413032448,-150.0,0.0002107,2]
[388840228,1759413032458,-150.0,0.00021161,4]
[388840229,1759413032467,-334.5472959,0.00021168,2]
[388840230,1759413032477,-162.85232865,0.00021288,2]
[388840231,1759413032487,-340.61,0.00021305,2]
[388840232,1759413032496,-152.0,0.0002131,3]
[388840233,1759413032506,-150.0,0.00021343,4]
[388840234,1759413032515,-150.0,0.00021343,4]
[388840235,1759413032524,-593.31996609,0.00021447,2]
[388840236,1759413032534,-150.0,0.00021453,4]
[388840237,1759413032543,-150.0,0.00021453,4]
[388840238,1759413032552,-150.0,0.00021453,4]
[388840239,1759413032561,-1051.99547633,0.00021483,2]
[388840240,1759413032571,-168.0,0.00021487,2]
[388840241,1759413032581,-151.0,0.00021497,2]
[388840242,1759413032590,-577.75004256,0.00021499,2]
[388840243,1759413032599,-500.0,0.00021499,2]
[388840244,1759413032608,-500.0,0.00021499,2]
[388840245,1759413032617,-500.0,0.00021499,2]
[388840246,1759413032627,-500.0,0.00021499,2]
[388840247,1759413032636,-500.0,0.00021499,2]
[388840248,1759413032645,-500.0,0.00021499,2]
[388840249,1759413032654,-601.34796506,0.00021499,2]